fUSD/lending_fUSD_20250716
["ID","MTS","AMOUNT","RATE_DAILY","PERIOD"]
[372466779,1752654663531,-1179.75,0.00021917,2]
[372466780,1752654663541,-460.0,0.00021917,2]
[372466781,1752654663551,-460.0,0.00021917,2]
[372466782,1752654663561,-10453.27,0.00021917,2]
[372466783,1752654663571,-500.0,0.00021917,2]
[372466784,1752654663581,-1194.34,0.00021917,2]
[372466785,1752654663591,-460.0,0.00021917,2]
[372466786,1752654663601,-486.87,0.00021917,2]
[372466787,1752654663611,-5853.44,0.00021917,2]
[372466788,1752654663622,-460.0,0.00021917,2]
[372466789,1752654663632,-637.083823,0.00021917,2]
[372466790,1752654663642,-637.083823,0.00021917,2]
[372466791,1752654663652,-637.083823,0.00021917,2]
[372466792,1752654663662,-637.083823,0.00021917,2]
[372466793,1752654663671,-1275.35,0.00021917,2]
[372466794,1752654663681,-552.32,0.00021917,2]
[372466795,1752654663691,-637.083823,0.00021917,2]
[372466796,1752654663702,-1959.99,0.00021917,2]
[372466797,1752654663712,-524.05,0.00021917,2]
[372466798,1752654663722,-467.0,0.00021917,2]
[372466799,1752654663732,-637.083823,0.00021917,2]
[372466800,1752654663742,-2666.49,0.00021917,2]
[372466801,1752654663751,-637.083823,0.00021917,2]
[372466802,1752654663762,-502.21,0.00021917,2]
[372466803,1752654663772,-637.083823,0.00021917,2]
[372466804,1752654663782,-460.0,0.00021917,2]
[372466805,1752654663792,-637.083823,0.00021917,2]
[372466806,1752654663802,-460.0,0.00021917,2]
[372466807,1752654663812,-637.083823,0.00021917,2]
[372466808,1752654663822,-460.0,0.00021917,2]
[372466809,1752654663832,-637.083823,0.00021917,2]
[372466810,1752654663842,-7686.01,0.00021917,2]
[372466811,1752654663852,-637.083823,0.00021917,2]
[372466812,1752654663862,-637.083823,0.00021917,2]
[372466813,1752654663872,-637.083823,0.00021917,2]
[372466814,1752654663882,-635.38,0.00021917,2]
[372466815,1752654663892,-637.083823,0.00021917,2]
[372466816,1752654663901,-637.083823,0.00021917,2]
[372466817,1752654663911,-637.083823,0.00021917,2]
[372466818,1752654663922,-474.6,0.00021917,2]
[372466819,1752654663932,-584.32,0.00021917,2]
[372466820,1752654663943,-637.083823,0.00021917,2]
[372466821,1752654663954,-637.083823,0.00021917,2]
[372466822,1752654663965,-460.0,0.00021917,2]
[372466823,1752654663977,-637.08382,0.00021917,2]
[372466824,1752654663988,-1492.16,0.00021917,2]
[372466825,1752654663999,-2749.75,0.00021917,2]
[372466826,1752654664010,-607.76107713,0.00021917,2]
[372466827,1752654664020,-460.0,0.00021917,2]
[372466828,1752654664030,-460.0,0.00021917,2]
[372466829,1752654664040,-4748.27,0.00021917,2]
[372466830,1752654664050,-1387.08,0.00021917,2]
[372466831,1752654664060,-7131.41,0.00021917,2]
[372466832,1752654664070,-839.47,0.00021917,2]
[372466833,1752654664080,-7500.59,0.00021917,2]
[372466834,1752654664090,-460.0,0.00021917,2]
[372466835,1752654664100,-460.0,0.00021917,2]
[372466836,1752654664110,-460.0,0.00021917,2]
[372466837,1752654664120,-460.0,0.00021917,2]
[372466838,1752654664130,-460.0,0.00021917,2]
[372466839,1752654664140,-461.23154058,0.00021917,2]
[372466840,1752654664150,-460.0,0.00021917,2]
[372466841,1752654664160,-11814.81,0.00021917,2]
[372466842,1752654664170,-460.0,0.00021917,2]
[372466843,1752654664179,-460.0,0.00021917,2]
[372466844,1752654664189,-460.0,0.00021917,2]
[372466845,1752654664199,-1685.55,0.00021917,2]
[372466846,1752654664209,-462.93034171,0.00021917,2]
[372466847,1752654664219,-460.0,0.00021917,2]
[372466848,1752654664228,-151.0,0.00021917,2]
[372466849,1752654664238,-460.0,0.00021917,2]
[372466850,1752654664249,-151.0,0.00021917,2]
[372466851,1752654664258,-460.0,0.00021917,2]
[372466852,1752654664268,-151.0,0.00021917,2]
[372466853,1752654664277,-151.0,0.00021917,2]
[372466854,1752654664287,-488.26,0.00021917,2]
[372466855,1752654664297,-151.0,0.00021917,2]
[372466856,1752654664307,-460.0,0.00021917,2]
[372466857,1752654664316,-151.0,0.00021917,2]
[372466858,1752654664326,-151.0,0.00021917,2]
[372466859,1752654664336,-16492.05,0.00021917,2]
[372466860,1752654664346,-151.0,0.00021917,2]
[372466861,1752654664355,-151.0,0.00021917,2]
[372466862,1752654664365,-460.0,0.00021917,2]
[372466863,1752654664375,-151.0,0.00021917,2]
[372466864,1752654664386,-5565.32,0.00021917,2]
[372466865,1752654664395,-151.0,0.00021917,2]
[372466866,1752654664405,-151.0,0.00021917,2]
[372466867,1752654664415,-460.0,0.00021917,2]
[372466868,1752654664425,-151.0,0.00021917,2]
[372466869,1752654664435,-500.0,0.00021917,2]
[372466870,1752654664446,-500.0,0.00021917,2]
[372466871,1752654664458,-1262.36,0.00021917,2]
[372466872,1752654664467,-819.23,0.00021917,2]
[372466873,1752654664477,-151.0,0.00021917,2]
[372466874,1752654664487,-151.0,0.00021917,2]
[372466875,1752654664496,-460.0,0.00021917,2]
[372466876,1752654664506,-5416.58,0.00021917,2]
[372466877,1752654664516,-13328.11,0.00021917,2]
[372466878,1752654664525,-151.0,0.00021917,2]
[372466879,1752654664537,-151.0,0.00021917,2]
[372466880,1752654664548,-1072.36,0.00021917,2]
[372466881,1752654664558,-260.728215,0.00021917,2]
[372466882,1752654664567,-1245.65,0.00021917,2]
[372466883,1752654664579,-627.57,0.00021917,2]
[372466884,1752654664590,-460.0,0.00021917,2]
[372466885,1752654664600,-460.0,0.00021917,2]
[372466886,1752654664610,-460.0,0.00021917,2]
[372466887,1752654664620,-8352.81,0.00021917,2]
[372466888,1752654664629,-559.6,0.00021917,2]
[372466889,1752654664639,-722.72,0.00021917,2]
[372466890,1752654664649,-460.0,0.00021917,2]
[372466891,1752654664659,-2659.36,0.00021917,2]
[372466892,1752654664669,-655.74,0.00021917,2]
[372466893,1752654664680,-1516.91,0.00021917,2]
[372466894,1752654664691,-1176.1,0.00021917,2]
[372466895,1752654664703,-460.0,0.00021917,2]
[372466896,1752654664712,-5166.21,0.00021917,2]
[372466897,1752654664722,-460.0,0.00021917,2]
[372466898,1752654664732,-5495.29,0.00021917,2]
[372466899,1752654664744,-2344.33,0.00021917,2]
[372466900,1752654664754,-500.0,0.00021917,2]
[372466901,1752654664764,-500.0,0.00021917,2]
[372466902,1752654664905,-500.0,0.00021917,2]
[372466903,1752654664915,-500.0,0.00021917,2]
[372466904,1752654664926,-460.0,0.00021917,2]
[372466905,1752654664936,-1424.31,0.00021917,2]
[372466906,1752654664946,-500.0,0.00021917,2]
[372466907,1752654664956,-460.0,0.00021917,2]
[372466908,1752654664966,-500.0,0.00021917,2]
[372466909,1752654664976,-2521.69,0.00021917,2]
[372466910,1752654664986,-500.0,0.00021917,2]
[372466911,1752654664995,-500.0,0.00021917,2]
[372466912,1752654665005,-500.0,0.00021917,2]
[372466913,1752654665015,-7192.45,0.00021917,2]
[372466914,1752654665024,-460.0,0.00021917,2]
[372466915,1752654665034,-500.0,0.00021917,2]
[372466916,1752654665043,-500.0,0.00021917,2]
[372466917,1752654665053,-500.0,0.00021917,2]
[372466918,1752654665063,-500.0,0.00021917,2]
[372466919,1752654665073,-500.0,0.00021917,2]
[372466920,1752654665083,-460.0,0.00021917,2]
[372466921,1752654665093,-500.0,0.00021917,2]
[372466922,1752654665103,-460.0,0.00021917,2]
[372466923,1752654665113,-3088.23,0.00021917,2]
[372466924,1752654665123,-1171.08,0.00021917,2]
[372466925,1752654665132,-460.0,0.00021917,2]
[372466926,1752654665143,-460.0,0.00021917,2]
[372466927,1752654665153,-460.0,0.00021917,2]
[372466928,1752654665162,-5076.65,0.00021917,2]
[372466929,1752654665174,-2787.17,0.00021917,2]
[372466930,1752654665186,-460.0,0.00021917,2]
[372466931,1752654665197,-12823.13,0.00021917,2]
[372466932,1752654665207,-460.0,0.00021917,2]
[372466933,1752654665217,-5109.08,0.00021917,2]
[372466934,1752654665227,-2717.27,0.00021917,2]
[372466935,1752654665236,-460.0,0.00021917,2]
[372466936,1752654665245,-460.0,0.00021917,2]
[372466937,1752654665255,-584.77,0.00021917,2]
[372466938,1752654665264,-460.0,0.00021917,2]
[372466939,1752654665274,-1060.6,0.00021917,2]
[372466940,1752654665283,-26789.11,0.00021917,2]
[372466941,1752654665292,-3457.59,0.00021917,2]
[372466942,1752654665301,-460.0,0.00021917,2]
[372466943,1752654665311,-3065.3,0.00021917,2]
[372466944,1752654665321,-2711.12,0.00021917,2]
[372466945,1752654665330,-669.14,0.00021917,2]
[372466946,1752654665340,-4197.73,0.00021917,2]
[372466947,1752654665349,-460.0,0.00021917,2]
[372466948,1752654665358,-460.0,0.00021917,2]
[372466949,1752654665367,-915.35,0.00021917,2]
[372466950,1752654665376,-151.0,0.00021917,2]
[372466951,1752654665386,-151.0,0.00021917,2]
[372466952,1752654665406,-460.0,0.00021917,2]
[372466953,1752654665427,-460.44132861,0.00021917,2]
[372466954,1752654665450,-461.83715601,0.00021917,2]
[372466955,1752654665470,-153.37950362,0.00021917,2]
[372466956,1752654665492,-2023.43,0.00021917,2]
[372466957,1752654665518,-480.67,0.00021917,2]
[372466958,1752654665541,-12134.96,0.00021917,2]
[372466959,1752654665563,-2043.68,0.00021917,2]
[372466960,1752654665586,-969.48,0.00021917,2]
[372466961,1752654665609,-460.0,0.00021917,2]
[372466962,1752654665630,-460.0,0.00021917,2]
[372466963,1752654665653,-1682.78,0.00021917,2]
[372466964,1752654665678,-1085.68,0.00021917,2]
[372466965,1752654665700,-3928.75,0.00021917,2]
[372466966,1752654665723,-460.0,0.00021917,2]
[372466967,1752654665732,-460.0,0.00021917,2]
[372466968,1752654665742,-460.0,0.00021917,2]
[372466969,1752654665752,-1204.2,0.00021917,2]
[372466970,1752654665761,-460.0,0.00021917,2]
[372466971,1752654665771,-151.0,0.00021917,2]
[372466972,1752654665780,-151.0,0.00021917,2]
[372466973,1752654665790,-7759.6,0.00021917,2]
[372466974,1752654665799,-151.0,0.00021917,2]
[372466975,1752654665809,-477.07059589,0.00021917,2]
[372466976,1752654665819,-1466.12,0.00021917,2]
[372466977,1752654665828,-2067.56,0.00021917,2]
[372466978,1752654665838,-786.87,0.00021917,2]
[372466979,1752654665848,-7593.85,0.00021917,2]
[372466980,1752654665857,-460.0,0.00021917,2]
[372466981,1752654665868,-151.0,0.00021918,2]
[372466982,1752654665878,-151.0,0.00021918,2]
[372466983,1752654665888,-151.0,0.00021918,2]
[372466984,1752654665897,-151.0,0.00021918,2]
[372466985,1752654665907,-1000.0,0.00021918,3]
[372466986,1752654665916,-1000.0,0.00021918,3]
[372466987,1752654665925,-1000.0,0.00021918,3]
[372466988,1752654665935,-1000.0,0.00021918,3]
[372466989,1752654665944,-1000.0,0.00021918,3]
[372466990,1752654665954,-1000.0,0.00021918,3]
[372466991,1752654665963,-1000.0,0.00021918,3]
[372466992,1752654665973,-1000.0,0.00021918,3]
[372466993,1752654665982,-1000.0,0.00021918,3]
[372466994,1752654665992,-1000.0,0.00021918,3]
[372466995,1752654666001,-1000.0,0.00021918,3]
[372466996,1752654666011,-1000.0,0.00021918,3]
[372466997,1752654666020,-1000.0,0.00021918,3]
[372466998,1752654666029,-1000.0,0.00021918,3]
[372466999,1752654666039,-1000.0,0.00021918,3]
[372467000,1752654666049,-1000.0,0.00021918,3]
[372467001,1752654666058,-1000.0,0.00021918,3]
[372467002,1752654666069,-1000.0,0.00021918,3]
[372467003,1752654666079,-1000.0,0.00021918,3]
[372467004,1752654666090,-1000.0,0.00021918,3]
[372467005,1752654666100,-1000.0,0.00021918,3]
[372467006,1752654666110,-1000.0,0.00021918,3]
[372467007,1752654666120,-1000.0,0.00021918,3]
[372467008,1752654666129,-1000.0,0.00021918,3]
[372467009,1752654666138,-1000.0,0.00021918,3]
[372467010,1752654666148,-1000.0,0.00021918,3]
[372467011,1752654666158,-1000.0,0.00021918,3]
[372467012,1752654666168,-1000.0,0.00021918,3]
[372467013,1752654666177,-1000.0,0.00021918,3]
[372467014,1752654666188,-1000.0,0.00021918,3]
[372467015,1752654666198,-1000.0,0.00021918,3]
[372467016,1752654666208,-1000.0,0.00021918,3]
[372467017,1752654666218,-1000.0,0.00021918,3]
[372467018,1752654666228,-1000.0,0.00021918,3]
[372467019,1752654666238,-1000.0,0.00021918,3]
[372467020,1752654666248,-1000.0,0.00021918,3]
[372467021,1752654666259,-1000.0,0.00021918,3]
[372467022,1752654666268,-1000.0,0.00021918,3]
[372467023,1752654666277,-1000.0,0.00021918,3]
[372467024,1752654666286,-1000.0,0.00021918,3]
[372467025,1752654666295,-1000.0,0.00021918,3]
[372467026,1752654666305,-1000.0,0.00021918,3]
[372467027,1752654666314,-1000.0,0.00021918,3]
[372467028,1752654666322,-1000.0,0.00021918,3]
[372467029,1752654666331,-1000.0,0.00021918,3]
[372467030,1752654666340,-1000.0,0.00021918,3]
[372467031,1752654666349,-1000.0,0.00021918,3]
[372467032,1752654666359,-1000.0,0.00021918,3]
[372467033,1752654666368,-1000.0,0.00021918,3]
[372467034,1752654666377,-1000.0,0.00021918,3]
[372467035,1752654666386,-1000.0,0.00021918,3]
[372467036,1752654666396,-1000.0,0.00021918,3]
[372467037,1752654666405,-1000.0,0.00021918,3]
[372467038,1752654666415,-1000.0,0.00021918,3]
[372467039,1752654666423,-1000.0,0.00021918,3]
[372467040,1752654666432,-1000.0,0.00021918,3]
[372467041,1752654666440,-1000.0,0.00021918,3]
[372467042,1752654666450,-1000.0,0.00021918,3]
[372467043,1752654666461,-736.0,0.00021918,3]
[372467044,1752654666470,-151.0,0.00021918,2]
[372467045,1752654666479,-151.0,0.00021918,2]
[372467046,1752654666488,-151.0,0.00021918,2]
[372467047,1752654666497,-151.0,0.00021918,2]
[372467048,1752654666506,-151.0,0.00021918,2]
[372467049,1752654666514,-151.0,0.00021918,2]
[372467050,1752654666522,-151.0,0.00021918,2]
[372467051,1752654666531,-151.0,0.00021918,2]
[372467052,1752654666540,-172.448359,0.00021918,2]
[372467053,1752654666548,-5000.0,0.00021918,2]
[372467054,1752654666557,-153.87333875,0.00021918,2]
[372467055,1752654666565,-458.6951431,0.00021918,3]
[372467056,1752654666573,-838.7287696,0.00021918,3]
[372467057,1752654666582,-150.0,0.00021918,2]
[372467058,1752654666591,-153.0,0.00021918,2]
[372467059,1752654666601,-153.0,0.00021918,2]
[372467060,1752654666610,-153.0,0.00021918,2]
[372467061,1752654666620,-153.0,0.00021918,2]
[372467062,1752654666629,-201.95522269,0.00021918,2]
[372467063,1752654666639,-151.0,0.00021918,7]
[372467064,1752654666648,-226.184216,0.00021918,7]
[372467065,1752654666658,-226.184216,0.00021918,7]
[372467066,1752654666668,-221.656819,0.00021918,7]
[372467067,1752654666678,-275.280798,0.00021918,7]
[372467068,1752654666687,-275.280798,0.00021918,7]
[372467069,1752654666697,-151.0,0.00021918,7]
[372467070,1752654666707,-500.0,0.00021918,2]
[372467071,1752654666716,-500.0,0.00021918,2]
[372467072,1752654666726,-539.0,0.00021918,2]
[372467073,1752654666736,-150.0,0.00021918,2]
[372467074,1752654666746,-150.0,0.00021918,2]
[372467075,1752654666755,-150.0,0.00021918,2]
[372467076,1752654666765,-250.909974,0.00021922,7]
[372467077,1752654666774,-166.75489779,0.00021924,4]
[372467078,1752654666784,-160.9001406,0.00021924,2]
[372467079,1752654666794,-150.0,0.00021927,2]
[372467080,1752654666803,-150.0,0.00021934,2]
[372467081,1752654666813,-1973.29432703,0.00021934,6]
[372467082,1752654666822,-150.0,0.00021935,2]
[372467083,1752654666832,-169.87412524,0.00021939,2]
[372467084,1752654666841,-150.0,0.00021941,2]
[372467085,1752654666851,-150.0,0.00021942,2]
[372467086,1752654666860,-150.0,0.00021948,2]
[372467087,1752654666871,-150.0,0.00021951,2]
[372467088,1752654666882,-529.36,0.00021953,2]
[372467089,1752654666892,-500.0,0.00021953,2]
[372467090,1752654666903,-1470.48,0.00021953,2]
[372467091,1752654666913,-1536.35,0.00021953,2]
[372467092,1752654666923,-877.05,0.00021953,2]
[372467093,1752654666933,-150.0,0.00021953,2]
[372467094,1752654666943,-150.0,0.00021953,2]
[372467095,1752654666953,-150.0,0.00021953,2]
[372467096,1752654666964,-4236.4242957,0.00021954,4]
[372467097,1752654666975,-4236.4242957,0.00021954,4]
[372467098,1752654666984,-4236.4242957,0.00021954,4]
[372467099,1752654666994,-4236.4242957,0.00021954,4]
[372467100,1752654667004,-4236.4242957,0.00021954,4]
[372467101,1752654667014,-4236.4242957,0.00021954,4]
[372467102,1752654667024,-4236.4242957,0.00021954,4]
[372467103,1752654667034,-4236.4242957,0.00021954,4]
[372467104,1752654667044,-4236.4242957,0.00021954,4]
[372467105,1752654667054,-4236.4242957,0.00021954,4]
[372467106,1752654667064,-4236.4242957,0.00021954,4]
[372467107,1752654667074,-4236.4242957,0.00021954,4]
[372467108,1752654667084,-4236.4242957,0.00021954,4]
[372467109,1752654667094,-4236.4242957,0.00021954,4]
[372467110,1752654667104,-4236.4242957,0.00021954,4]
[372467111,1752654667113,-4236.4242957,0.00021954,4]
[372467112,1752654667123,-4236.4242957,0.00021954,4]
[372467113,1752654667133,-4320.06152741,0.00021954,4]
[372467114,1752654667142,-4320.06152741,0.00021954,4]
[372467115,1752654667152,-4320.06152741,0.00021954,4]
[372467116,1752654667162,-4320.06152741,0.00021954,4]
[372467117,1752654667172,-4320.06152741,0.00021954,4]
[372467118,1752654667182,-4320.06152741,0.00021954,4]
[372467119,1752654667192,-4320.06152741,0.00021954,4]
[372467120,1752654667202,-4320.06152741,0.00021954,4]
[372467121,1752654667213,-4320.06152741,0.00021954,4]
[372467122,1752654667223,-4320.06152741,0.00021954,4]
[372467123,1752654667232,-4320.06152741,0.00021954,4]
[372467124,1752654667243,-4320.06152741,0.00021954,4]
[372467125,1752654667256,-4320.06152741,0.00021954,4]
[372467126,1752654667266,-4320.06152741,0.00021954,4]
[372467127,1752654667276,-4320.06152741,0.00021954,4]
[372467128,1752654667286,-4320.06152741,0.00021954,4]
[372467129,1752654667296,-4320.06152741,0.00021954,4]
[372467130,1752654667306,-4628.4112438,0.00021954,4]
[372467131,1752654667315,-4628.4112438,0.00021954,4]
[372467132,1752654667325,-4628.4112438,0.00021954,4]
[372467133,1752654667335,-4628.4112438,0.00021954,4]
[372467134,1752654667344,-4628.4112438,0.00021954,4]
[372467135,1752654667354,-4628.4112438,0.00021954,4]
[372467136,1752654667364,-4628.4112438,0.00021954,4]
[372467137,1752654667374,-4628.4112438,0.00021954,4]
[372467138,1752654667384,-4628.4112438,0.00021954,4]
[372467139,1752654667394,-4628.4112438,0.00021954,4]
[372467140,1752654667403,-4628.4112438,0.00021954,4]
[372467141,1752654667413,-4628.4112438,0.00021954,4]
[372467142,1752654667423,-4628.4112438,0.00021954,4]
[372467143,1752654667433,-4628.4112438,0.00021954,4]
[372467144,1752654667443,-4628.4112438,0.00021954,4]
[372467145,1752654667453,-4628.4112438,0.00021954,4]
[372467146,1752654667469,-4628.4112438,0.00021954,4]
[372467147,1752654667483,-153.232951,0.00021954,7]
[372467148,1752654667492,-288.498733,0.00021954,7]
[372467149,1752654667503,-237.777039,0.00021954,7]
[372467150,1752654667515,-237.777039,0.00021954,7]
[372467151,1752654667525,-151.0,0.00021954,7]
[372467152,1752654667534,-224.02807,0.00021954,7]
[372467153,1752654667548,-224.02807,0.00021954,7]
[372467154,1752654667558,-1500.0,0.00021954,14]
[372467155,1752654667568,-1500.0,0.00021954,14]
[372467156,1752654667578,-1500.0,0.00021954,14]
[372467157,1752654667588,-1500.0,0.00021954,14]
[372467158,1752654667599,-1500.0,0.00021954,14]
[372467159,1752654667608,-1500.0,0.00021954,14]
[372467160,1752654667618,-1500.0,0.00021954,14]
[372467161,1752654667628,-1500.0,0.00021954,14]
[372467162,1752654667639,-1500.0,0.00021954,14]
[372467163,1752654667648,-1500.0,0.00021954,14]
[372467164,1752654667659,-1500.0,0.00021954,14]
[372467165,1752654667669,-1500.0,0.00021954,14]
[372467166,1752654667680,-1500.0,0.00021954,14]
[372467167,1752654667694,-1500.0,0.00021954,14]
[372467168,1752654667704,-1500.0,0.00021954,14]
[372467169,1752654667714,-1532.876172,0.00021954,14]
[372467170,1752654667724,-151.0,0.00021954,7]
[372467171,1752654667739,-156.585107,0.00021954,7]
[372467172,1752654667750,-156.585107,0.00021954,7]
[372467173,1752654667760,-151.0,0.00021954,7]
[372467174,1752654667769,-181.944592,0.00021954,7]
[372467175,1752654667780,-181.944592,0.00021954,7]
[372467176,1752654667795,-226.65347383,0.00021954,2]
[372467177,1752654667815,-760.885495,0.00021954,7]
[372467178,1752654667825,-718.61019481,0.00021954,2]
[372467179,1752654667834,-1258.33853,0.00021954,7]
[372467180,1752654667844,-1258.33853,0.00021954,7]
[372467181,1752654667854,-150.0,0.00021956,2]
[372467182,1752654667864,-150.0,0.00021958,2]
[372467183,1752654667874,-168.0,0.00021965,2]
[372467184,1752654667884,-150.0,0.00021965,2]
[372467185,1752654667894,-150.0,0.00021968,2]
[372467186,1752654667904,-150.0,0.00021969,2]
[372467187,1752654667914,-1675.84725157,0.00021969,2]
[372467188,1752654667924,-150.0,0.0002197,2]
[372467189,1752654667934,-280.778868,0.00021972,7]
[372467190,1752654667944,-280.778868,0.00021972,7]
[372467191,1752654667954,-512.641004,0.00021972,7]
[372467192,1752654667964,-163.975848,0.00021972,7]
[372467193,1752654667974,-163.975848,0.00021972,7]
[372467194,1752654667984,-458.6951431,0.00021972,7]
[372467195,1752654667994,-838.7287696,0.00021972,7]
[372467196,1752654668004,-645.52834518,0.00021973,2]
[372467197,1752654668013,-500.0,0.00021973,2]
[372467198,1752654668024,-500.0,0.00021973,2]
[372467199,1752654668034,-500.0,0.00021973,2]
[372467200,1752654668044,-500.93674537,0.00021973,2]
[372467201,1752654668055,-500.62068923,0.00021973,2]
[372467202,1752654668065,-504.08184407,0.00021973,2]
[372467203,1752654668075,-500.0,0.00021973,2]
[372467204,1752654668086,-500.0,0.00021973,2]
[372467205,1752654668096,-500.0,0.00021973,2]
[372467206,1752654668106,-525.32884282,0.00021973,2]
[372467207,1752654668117,-159.65964935,0.00021973,2]
[372467208,1752654668128,-500.0,0.00021973,2]
[372467209,1752654668140,-502.39398706,0.00021973,2]
[372467210,1752654668150,-500.0,0.00021973,2]
[372467211,1752654668159,-500.0,0.00021973,2]
[372467212,1752654668169,-500.0,0.00021973,2]
[372467213,1752654668178,-500.0,0.00021973,2]
[372467214,1752654668187,-500.0,0.00021973,2]
[372467215,1752654668196,-501.10542618,0.00021973,2]
[372467216,1752654668205,-500.0,0.00021973,2]
[372467217,1752654668214,-500.0,0.00021973,2]
[372467218,1752654668223,-500.0,0.00021973,2]
[372467219,1752654668232,-504.18779699,0.00021973,2]
[372467220,1752654668241,-500.0,0.00021973,2]
[372467221,1752654668250,-502.04250254,0.00021973,2]
[372467222,1752654668259,-150.0,0.00021973,2]
[372467223,1752654668268,-1000.0,0.00021974,2]
[372467224,1752654668277,-150.0,0.00021974,2]
[372467225,1752654668286,-150.0,0.00021977,2]
[372467226,1752654668295,-150.0,0.00021977,2]
[372467227,1752654668303,-308.0,0.0002198,2]
[372467228,1752654668313,-150.0,0.00021982,2]
[372467229,1752654668322,-150.0,0.00021983,2]
[372467230,1752654668331,-150.0,0.00021984,2]
[372467231,1752654668339,-1459.3345813,0.00021985,2]
[372467232,1752654668349,-17421.5193167,0.00021985,2]
[372467233,1752654668358,-21532.7731873,0.00021985,2]
[372467234,1752654668367,-164.47001437,0.00021986,10]
[372467235,1752654668376,-321.6562496,0.00021986,10]
[372467236,1752654668385,-187603.0961285,0.00021991,2]
[372467237,1752654668394,-4362.1438858,0.00021991,2]
[372467238,1752654668403,-150.0,0.00021998,2]
[372467239,1752654668412,-754.0,0.00021999,2]
[372467240,1752654668421,-1036.18583062,0.00022,2]
[372467241,1752654668429,-3000.0,0.00022,2]
[372467242,1752654668439,-3000.0,0.00022,2]
[372467243,1752654668448,-3000.0,0.00022,2]
[372467244,1752654668459,-2508.25,0.00022,2]
[372467245,1752654668469,-2018.524215,0.00022,2]
[372467246,1752654668478,-1621.0,0.00022,2]
[372467247,1752654668487,-1000.0,0.00022,2]
[372467248,1752654668496,-423.7273368,0.00022,30]
[372467249,1752654668506,-500.247932,0.00022,2]
[372467250,1752654668516,-383.0,0.00022,2]
[372467251,1752654668525,-849.0,0.00022,2]
[372467252,1752654668534,-5002.66819893,0.00022,2]
[372467253,1752654668545,-378.0,0.00022,2]
[372467254,1752654668555,-2500.48020032,0.00022,2]
[372467255,1752654668565,-391.0,0.00022,2]
[372467256,1752654668574,-239.0,0.00022,2]
[372467257,1752654668583,-4236.4242957,0.00022006,4]
[372467258,1752654668592,-4320.06152741,0.00022006,4]
[372467259,1752654668601,-4628.4112438,0.00022006,4]
[372467260,1752654668609,-150.0,0.00022006,2]
[372467261,1752654668619,-150.0,0.00022007,2]
[372467262,1752654668628,-150.0,0.00022007,2]
[372467263,1752654668637,-1470.48,0.00022008,2]
[372467264,1752654668647,-1536.35,0.00022008,2]
[372467265,1752654668656,-151.0,0.00022009,7]
[372467266,1752654668665,-275.280798,0.00022009,7]
[372467267,1752654668674,-275.280798,0.00022009,7]
[372467268,1752654668683,-151.0,0.00022009,7]
[372467269,1752654668692,-150.0,0.00022016,2]
[372467270,1752654668702,-150.0,0.00022019,2]
[372467271,1752654668713,-500.0,0.00022023,2]
[372467272,1752654668723,-1470.48,0.00022023,2]
[372467273,1752654668732,-1536.35,0.00022023,2]
[372467274,1752654668741,-151.0,0.00022024,7]
[372467275,1752654668750,-226.184216,0.00022024,7]
[372467276,1752654668759,-226.184216,0.00022024,7]
[372467277,1752654668768,-237.777039,0.00022024,7]
[372467278,1752654668777,-250.909974,0.00022024,7]